bitfinex-derivatives/quotes_BTCF0:USTF0_20251109
["timestamp","ask_amount","ask_price","bid_price","bid_amount"]
[1762718127505,0.07167346,104910.0,104900.0,0.45614998]
[1762718127802,0.11150346,104910.0,104900.0,0.45614998]
[1762718129796,0.11150346,104910.0,104900.0,0.43708998]
[1762718131204,0.11150346,104910.0,104900.0,0.45614998]
[1762718131908,0.11150346,104910.0,104900.0,0.43708998]
[1762718132208,0.11246,104900.0,104890.0,0.3608]
[1762718132409,0.11246,104890.0,104880.0,0.44892346]
[1762718132612,0.23262523,104890.0,104880.0,0.46798346]
[1762718132908,0.31796952,104890.0,104880.0,0.46798346]
[1762718133104,0.31796952,104890.0,104880.0,0.44892346]
[1762718133304,0.31796952,104890.0,104880.0,0.46798346]
[1762718134408,0.31796952,104890.0,104880.0,0.33909368]
[1762718134606,0.19780429,104890.0,104880.0,0.33909368]
[1762718135007,0.19780429,104890.0,104880.0,0.34109368]
[1762718135204,0.55860429,104890.0,104880.0,0.11204]
[1762718135515,0.67863683,104890.0,104880.0,0.005]
[1762718136414,0.67863683,104890.0,104880.0,0.05079]
[1762718136713,0.67863683,104890.0,104880.0,0.09298]
[1762718137712,0.31783683,104890.0,104880.0,0.09298]
[1762718138210,0.31783683,104890.0,104880.0,0.05079]
[1762718138406,0.67863683,104890.0,104880.0,0.09298]
[1762718139000,0.55860429,104890.0,104880.0,0.09298]
[1762718142614,0.55864429,104890.0,104880.0,0.09298]
[1762718143008,0.1125,104890.0,104880.0,0.47284]
[1762718143408,0.17229494,104890.0,104880.0,0.57604429]
[1762718144410,0.08569494,104890.0,104880.0,0.57604429]
[1762718144608,4e-05,104890.0,104880.0,0.57604429]
[1762718144813,0.1125,104890.0,104880.0,0.47284]
[1762718145205,0.1125,104890.0,104880.0,0.55818429]
[1762718145206,4e-05,104890.0,104880.0,0.55818429]
[1762718146717,0.08569494,104890.0,104880.0,0.55818429]
[1762718147125,4e-05,104890.0,104880.0,0.55818429]
[1762718148414,4e-05,104890.0,104880.0,0.47284]
[1762718148816,0.08569494,104890.0,104880.0,0.55818429]
[1762718149521,0.16619494,104890.0,104880.0,0.47284]
[1762718151322,0.04179,104890.0,104880.0,0.55818429]
[1762718151525,4e-05,104890.0,104880.0,0.55818429]
[1762718152114,0.08054,104890.0,104880.0,0.55818429]
[1762718152816,0.04179,104890.0,104880.0,0.55818429]
[1762718153115,0.04179,104890.0,104880.0,0.53912429]
[1762718153315,0.04179,104890.0,104880.0,0.55818429]
[1762718154120,0.08054,104890.0,104880.0,0.55818429]
[1762718156222,0.10334,104890.0,104880.0,0.47284]
[1762718156429,0.18868429,104890.0,104880.0,0.09298]
[1762718156616,0.30871683,104890.0,104880.0,0.09298]
[1762718156818,0.66951683,104890.0,104880.0,0.09298]
[1762718157420,0.2475033,104890.0,104880.0,0.55818429]
[1762718157624,0.2475033,104890.0,104880.0,0.47284]
[1762718157625,0.16182254,104890.0,104880.0,0.47284]
[1762718157819,0.08174,104890.0,104880.0,0.47284]
[1762718158623,0.10454,104890.0,104880.0,0.47284]
[1762718158920,0.18988429,104890.0,104880.0,0.47284]
[1762718159124,0.19022076,104890.0,104880.0,0.47284]
[1762718161228,0.10454,104890.0,104880.0,0.47284]
[1762718163728,0.10454,104890.0,104880.0,0.55818429]
[1762718163931,0.04179,104890.0,104880.0,0.55818429]
[1762718164122,0.08574091,104890.0,104880.0,0.47284]
[1762718164730,0.08574091,104890.0,104880.0,0.55818429]
[1762718164927,0.12550091,104890.0,104880.0,0.55818429]
[1762718165139,0.16545091,104890.0,104880.0,0.47284]
[1762718165430,0.18825091,104890.0,104880.0,0.47284]
[1762718167941,0.2735952,104890.0,104880.0,0.47284]
[1762718168540,0.18825091,104890.0,104880.0,0.47284]
[1762718168728,0.10255,104890.0,104880.0,0.47284]
[1762718168928,0.1882944,104890.0,104880.0,0.47284]
[1762718170230,0.10255,104890.0,104880.0,0.47284]
[1762718171032,0.18789429,104890.0,104880.0,0.11204]
[1762718171342,0.18789429,104890.0,104880.0,0.47284]
[1762718171638,0.10255,104890.0,104880.0,0.11204]
[1762718172139,0.18789429,104890.0,104880.0,0.09298]
[1762718173331,0.10255,104890.0,104880.0,0.09298]
[1762718173527,0.18789429,104890.0,104880.0,0.09298]
[1762718173937,0.30792683,104890.0,104880.0,0.09298]
[1762718174330,0.30792683,104890.0,104880.0,0.11204]
[1762718175230,0.30832683,104890.0,104880.0,0.11204]
[1762718176436,0.30832683,104890.0,104880.0,0.03932864]
[1762718176737,0.18829429,104890.0,104880.0,0.03932864]
[1762718177125,0.35983865,104890.0,104880.0,0.03932864]
[1762718177737,0.17198436,104890.0,104880.0,0.03932864]
[1762718177931,0.35464469,104890.0,104880.0,0.48547293]
[1762718178130,0.22305033,104890.0,104880.0,0.48547293]
[1762718178333,0.22305033,104890.0,104880.0,0.40012864]
[1762718178538,0.22305033,104890.0,104880.0,0.48547293]
[1762718179337,0.22305033,104890.0,104880.0,0.40012864]
[1762718180343,0.30839462,104890.0,104880.0,0.40012864]
[1762718181335,0.18829429,104890.0,104880.0,0.40012864]
[1762718182245,0.18829429,104890.0,104880.0,0.03932864]
[1762718183848,0.10295,104890.0,104880.0,0.03932864]
[1762718184247,0.10295,104890.0,104880.0,0.40012864]
[1762718184447,0.18829429,104890.0,104880.0,0.38106864]
[1762718184746,0.18829429,104890.0,104880.0,0.40012864]
[1762718186543,0.10295,104890.0,104880.0,0.40012864]
[1762718186737,0.22309819,104890.0,104880.0,0.40012864]
[1762718187342,0.12058819,104890.0,104880.0,0.48547293]
[1762718187548,0.06207,104890.0,104880.0,0.57081722]
[1762718187747,0.09865,104890.0,104880.0,0.40012864]
[1762718187953,0.21879819,104890.0,104880.0,0.40012864]
[1762718190149,0.21879819,104890.0,104880.0,0.48547293]
[1762718192852,0.09865,104890.0,104880.0,0.48547293]
[1762718193547,0.09865,104890.0,104880.0,0.40012864]
[1762718193962,0.18399429,104890.0,104880.0,0.40012864]
[1762718194159,0.18448223,104890.0,104880.0,0.40012864]
[1762718197062,0.09865,104890.0,104880.0,0.40012864]
[1762718197557,0.21879819,104890.0,104880.0,0.40012864]
[1762718202064,0.09865,104890.0,104880.0,0.40012864]
[1762718202758,0.21881852,104890.0,104880.0,0.40012864]
[1762718203263,0.09865,104890.0,104880.0,0.27124767]
[1762718204459,0.09865,104890.0,104880.0,0.25218767]
[1762718204661,0.09865,104890.0,104880.0,0.27124767]
[1762718206664,0.09865,104890.0,104880.0,0.01906]
[1762718206867,0.2188348,104890.0,104880.0,0.01906]
[1762718208663,0.30468603,104890.0,104880.0,0.01906]
[1762718208864,0.18450123,104890.0,104880.0,0.01906]
[1762718209063,0.09865,104890.0,104880.0,0.01906]
[1762718209266,0.2188348,104890.0,104880.0,0.01906]
[1762718213170,0.09414,104880.0,104870.0,0.36571104]
[1762718213466,0.1799968,104880.0,104870.0,0.36571104]
[1762718213667,0.1799968,104880.0,104870.0,0.38477104]
[1762718214269,0.1799968,104880.0,104870.0,0.38777104]
[1762718214470,0.1799968,104880.0,104870.0,0.39177104]
[1762718214669,0.09414,104880.0,104870.0,0.39177104]
[1762718217664,0.2143248,104880.0,104870.0,0.46761675]
[1762718218965,0.30018598,104880.0,104870.0,0.46761675]
[1762718219272,0.18000118,104880.0,104870.0,0.46761675]
[1762718220664,0.09414,104880.0,104870.0,0.46761675]
[1762718221870,0.09414,104880.0,104870.0,0.39177104]
[1762718224472,0.09414,104880.0,104870.0,0.37271104]
[1762718224674,0.09414,104880.0,104870.0,0.39177104]
[1762718225071,0.09414,104880.0,104870.0,0.48714104]
[1762718225267,0.09414,104880.0,104870.0,0.46761675]
[1762718226677,0.09414,104880.0,104870.0,0.56298675]
[1762718227573,0.09414,104880.0,104870.0,0.46761675]
[1762718228164,0.09414,104880.0,104870.0,0.56298675]
[1762718228373,0.02008,104880.0,104870.0,0.56298675]
[1762718228578,0.10594118,104880.0,104870.0,0.56298675]
[1762718233382,0.17644118,104880.0,104870.0,0.46761675]
[1762718233878,0.17644118,104880.0,104870.0,0.56298675]
[1762718234076,0.17644118,104880.0,104870.0,0.46761675]
[1762718234682,0.17644118,104880.0,104870.0,0.56298675]
[1762718235682,0.1753348,104880.0,104870.0,0.56298675]
[1762718237579,0.1410191,104880.0,104870.0,0.56298675]
[1762718238384,0.1764491,104880.0,104870.0,0.56298675]
[1762718240284,0.09058,104880.0,104870.0,0.56298675]
[1762718240688,0.02008,104880.0,104870.0,0.56298675]
[1762718240982,0.09058,104880.0,104870.0,0.56298675]
[1762718243478,0.09058,104880.0,104870.0,0.71038675]
[1762718243678,0.09058,104880.0,104870.0,0.61501675]
[1762718244391,0.09058,104880.0,104870.0,0.71038675]
[1762718246081,0.09058,104880.0,104870.0,0.61501675]
[1762718246582,0.09058,104880.0,104870.0,0.53917104]
[1762718246983,0.17644706,104880.0,104870.0,0.53917104]
[1762718247183,0.09058,104880.0,104870.0,0.53917104]
[1762718247382,0.2107648,104880.0,104870.0,0.53917104]
[1762718247583,0.2107648,104880.0,104870.0,0.61501675]
[1762718248389,0.2107648,104880.0,104870.0,0.53917104]
[1762718248688,0.2107648,104880.0,104870.0,0.61501675]
[1762718249190,0.21079369,104880.0,104870.0,0.61501675]
[1762718249386,0.21079369,104880.0,104870.0,0.39177104]
[1762718250080,0.21079551,104880.0,104870.0,0.39177104]
[1762718252083,0.09058,104880.0,104870.0,0.39177104]
[1762718254592,0.09058,104880.0,104870.0,0.37271104]
[1762718255590,0.09058,104880.0,104870.0,0.24382251]
[1762718256390,0.09058,104880.0,104870.0,0.32916694]
[1762718258086,0.09058,104880.0,104870.0,0.24382251]
[1762718258394,0.09058,104880.0,104870.0,0.34822694]
[1762718259091,0.21076384,104880.0,104870.0,0.34822694]
[1762718259989,0.09058,104880.0,104870.0,0.34822694]
[1762718261586,0.17642121,104880.0,104870.0,0.34822694]
[1762718264089,0.17642121,104880.0,104870.0,0.44359694]
[1762718264397,0.17642121,104880.0,104870.0,0.34822694]
[1762718265102,0.09058,104880.0,104870.0,0.34822694]
[1762718265395,0.21076384,104880.0,104870.0,0.34822694]
[1762718267298,0.21076384,104880.0,104870.0,0.47234789]
[1762718272901,0.21076384,104880.0,104870.0,0.38700346]
[1762718273100,0.21076384,104880.0,104870.0,0.45328789]
[1762718273402,0.21076384,104880.0,104870.0,0.47234789]
[1762718275307,0.29663175,104880.0,104870.0,0.47234789]
[1762718275507,0.17644791,104880.0,104870.0,0.47234789]
[1762718277806,0.09058,104880.0,104870.0,0.47234789]
[1762718278806,0.17644791,104880.0,104870.0,0.47234789]
[1762718279601,0.09058,104880.0,104870.0,0.47234789]
[1762718282902,0.08379,104880.0,104870.0,0.56771789]
[1762718283110,0.16965791,104880.0,104870.0,0.56771789]
[1762718286808,0.16965791,104880.0,104870.0,0.47234789]
[1762718287014,0.16965791,104880.0,104870.0,0.56771739]
[1762718289717,0.16965791,104880.0,104870.0,0.47234789]
[1762718290315,0.16965791,104880.0,104870.0,0.61974789]
[1762718293103,0.16965791,104880.0,104870.0,0.60068789]
[1762718293308,0.16965791,104880.0,104870.0,0.61974789]
[1762718295718,0.16965791,104880.0,104870.0,0.53440346]
[1762718295919,0.16913443,104880.0,104870.0,0.53440346]
[1762718296216,0.08379,104880.0,104870.0,0.02620346]
[1762718296418,0.16965791,104880.0,104870.0,0.11154789]
[1762718296618,0.16965791,104880.0,104870.0,0.47234789]
[1762718297509,0.16965791,104880.0,104870.0,0.38700346]
[1762718298321,0.08379,104880.0,104870.0,0.47234789]
[1762718299519,0.08379,104880.0,104870.0,0.38700346]
[1762718299714,0.08379,104880.0,104870.0,0.47234789]
[1762718299912,0.10585873,104880.0,104870.0,0.65306182]
[1762718300212,0.28898603,104890.0,104880.0,0.0953604]
[1762718300417,0.16880219,104890.0,104880.0,0.56056483]
[1762718300616,0.16880219,104890.0,104880.0,0.64590926]
[1762718301019,0.16880219,104890.0,104880.0,0.56056483]
[1762718301320,0.16880219,104890.0,104880.0,0.64590926]
[1762718301820,0.16880219,104890.0,104880.0,0.65090926]
[1762718305121,0.16880219,104890.0,104880.0,0.79830926]
[1762718306422,0.08302346,104890.0,104880.0,0.79830926]
[1762718313023,0.08302346,104890.0,104880.0,0.70294886]
[1762718313413,0.08302346,104890.0,104880.0,0.61760443]
[1762718313619,0.08302346,104890.0,104880.0,0.71296483]
[1762718316014,0.1515551,104890.0,104880.0,0.71296483]
[1762718316915,0.1515551,104890.0,104880.0,0.70344309]
[1762718317226,0.1515551,104890.0,104880.0,0.60808269]
[1762718317530,0.1515551,104890.0,104880.0,0.55604309]
[1762718326239,0.1515551,104890.0,104880.0,0.38486]
[1762718326428,0.1515551,104890.0,104880.0,0.4802261]
[1762718326733,0.08302346,104890.0,104880.0,0.4802261]
[1762718327036,0.15158795,104890.0,104880.0,0.4802261]
[1762718327235,0.16880219,104890.0,104880.0,0.4802261]
[1762718327436,0.16880219,104890.0,104880.0,0.55604879]
[1762718328139,0.16880219,104890.0,104880.0,0.38486]
[1762718329337,0.2032073,104890.0,104880.0,0.38486]
[1762718330638,0.2032073,104890.0,104880.0,0.46068269]
[1762718330831,0.2032073,104890.0,104880.0,0.38486]
[1762718331335,0.2032073,104890.0,104880.0,0.005]
[1762718331538,0.5640073,104890.0,104880.0,0.005]
[1762718331731,0.2032073,104890.0,104880.0,0.005]
[1762718332633,0.2032073,104890.0,104880.0,0.55605069]
[1762718332829,0.08302346,104890.0,104880.0,0.55605069]
[1762718334040,0.15168279,104890.0,104880.0,0.55605069]
[1762718337444,0.15168279,104890.0,104880.0,0.70345069]
[1762718340454,0.08302346,104890.0,104880.0,0.70345069]
[1762718341451,0.16884762,104890.0,104880.0,0.70345069]
[1762718341749,0.08302346,104890.0,104880.0,0.70345069]
[1762718342156,0.16884762,104890.0,104880.0,0.70345069]
[1762718342455,0.14020762,104890.0,104880.0,0.70345069]
[1762718342756,0.16491762,104890.0,104880.0,0.70345069]
[1762718344461,0.07909346,104890.0,104880.0,0.68439069]
[1762718344759,0.07909346,104890.0,104880.0,0.70345069]
[1762718345354,0.1089999,104890.0,104880.0,0.70345069]
[1762718345658,0.04768346,104890.0,104880.0,0.70345069]
[1762718345858,0.1089999,104890.0,104880.0,0.70345069]
[1762718346052,0.1335299,104890.0,104880.0,0.70345069]
[1762718346354,0.02315346,104890.0,104880.0,0.70345069]
[1762718347761,0.04768346,104890.0,104880.0,0.70345069]
[1762718348058,0.07239346,104890.0,104880.0,0.627628]
[1762718348357,0.07239346,104890.0,104880.0,0.70345069]
[1762718349051,0.1582399,104890.0,104880.0,0.70345069]
[1762718351349,0.07239346,104890.0,104880.0,0.70345069]
[1762718352966,0.15823757,104890.0,104880.0,0.70345069]
[1762718354065,0.07239346,104890.0,104880.0,0.70345069]
[1762718354968,0.1925773,104890.0,104880.0,0.70345069]
[1762718359169,0.27841058,104890.0,104880.0,0.70345069]
[1762718359370,0.15822674,104890.0,104880.0,0.70345069]
[1762718364373,0.15822674,104890.0,104880.0,0.70345189]
[1762718365478,0.22691141,104890.0,104880.0,0.55605189]
[1762718365777,0.11636813,104890.0,104880.0,0.55605189]
[1762718365979,0.14107813,104890.0,104880.0,0.55605189]
[1762718366475,0.09183813,104890.0,104880.0,0.55605189]
[1762718366679,0.08641674,104890.0,104880.0,0.63187458]
[1762718366882,0.08641674,104890.0,104880.0,0.87023458]
[1762718367271,0.00058346,104890.0,104880.0,0.87023458]
[1762718367676,0.00058346,104890.0,104880.0,0.63187458]
[1762718367981,0.06925094,104890.0,104880.0,0.87023458]
[1762718368276,0.08195094,104890.0,104880.0,0.55605189]
[1762718368471,0.08195094,104890.0,104880.0,0.79441189]
[1762718368776,0.08195094,104890.0,104880.0,0.63187458]
[1762718368977,0.08195094,104890.0,104880.0,0.87023458]
[1762718369164,0.08195094,104890.0,104880.0,0.63187458]
[1762718369568,0.06925094,104890.0,104880.0,0.87023458]
[1762718370574,0.06925094,104890.0,104880.0,0.63187458]
[1762718370980,0.06925094,104890.0,104880.0,0.87023458]
[1762718371681,0.06925094,104890.0,104880.0,0.63187458]
[1762718371982,0.06925094,104890.0,104880.0,0.87023458]
[1762718372583,0.06925094,104890.0,104880.0,0.63187458]
[1762718372880,0.00058346,104890.0,104880.0,0.87023458]
[1762718373076,0.00058346,104890.0,104880.0,0.63187458]
[1762718373579,0.01328346,104890.0,104880.0,0.87023458]
[1762718375982,0.03679346,104890.0,104880.0,0.87023458]
[1762718376284,0.01229623,104890.0,104880.0,0.87023458]
[1762718376986,0.01229623,104890.0,104880.0,0.88911842]
[1762718377581,0.03580623,104890.0,104880.0,0.88911842]
[1762718378181,0.01229623,104890.0,104880.0,0.88911842]
[1762718378687,0.01229623,104890.0,104880.0,0.65075842]
[1762718379780,0.03580623,104890.0,104880.0,0.65075842]
[1762718380075,0.01229623,104890.0,104880.0,0.65075842]
[1762718381589,0.05907623,104890.0,104880.0,0.65075842]
[1762718381885,0.01229623,104890.0,104880.0,0.65075842]
[1762718382979,0.03580623,104890.0,104880.0,0.65075842]
[1762718383178,0.01229623,104890.0,104880.0,0.65075842]
[1762718384187,0.03580623,104890.0,104880.0,0.65075842]
[1762718384685,0.01229623,104890.0,104880.0,0.65075842]
[1762718385680,0.03580623,104890.0,104880.0,0.65075842]
[1762718387080,0.05907623,104890.0,104880.0,0.65075842]
[1762718387280,0.03580623,104890.0,104880.0,0.65075842]
[1762718387480,0.05834623,104890.0,104880.0,0.4802292]
[1762718387783,0.05834623,104890.0,104880.0,0.65075842]
[1762718388583,0.12701371,104890.0,104880.0,0.4611688]
[1762718388783,0.12701371,104890.0,104880.0,0.45106461]
[1762718388980,0.12701371,104890.0,104880.0,0.54643341]
[1762718389179,0.05834623,104890.0,104880.0,0.45106461]
[1762718389383,0.05834623,104890.0,104880.0,0.54643341]
[1762718389577,0.17853007,104890.0,104880.0,0.63169802]
[1762718389775,0.26435025,104890.0,104880.0,0.63169802]
[1762718389974,0.14416641,104890.0,104880.0,0.63169802]
[1762718390380,0.05834623,104890.0,104880.0,0.63169802]
[1762718391287,0.17853007,104890.0,104880.0,0.63169802]
[1762718393579,0.26434522,104890.0,104880.0,0.63169802]
[1762718393986,0.14416138,104890.0,104880.0,0.63169802]
[1762718394190,0.14416138,104890.0,104880.0,0.65075802]
[1762718395090,0.01229623,104890.0,104880.0,0.65075802]
[1762718395284,0.03419623,104890.0,104880.0,0.65075802]
[1762718395588,0.01229623,104890.0,104880.0,0.65075802]
[1762718396982,0.15505861,104900.0,104890.0,0.0953598]
[1762718397191,0.15505861,104900.0,104890.0,0.56048441]
[1762718398988,0.21617683,104910.0,104890.0,0.88406902]
[1762718399286,0.07255,104910.0,104900.0,0.4752107]
[1762718399592,0.07255,104910.0,104900.0,0.56047531]
[1762718401093,0.07555,104910.0,104900.0,0.56047531]
[1762718401387,0.14419497,104910.0,104900.0,0.44606461]
[1762718401893,0.07555,104910.0,104900.0,0.54141531]
[1762718403287,0.14419726,104910.0,104900.0,0.56047531]
[1762718405806,0.07555,104910.0,104900.0,0.64573992]
[1762718406395,0.03034,104910.0,104900.0,0.64573992]
[1762718406599,0.00454,104930.0,104920.0,0.0953326]
[1762718406791,0.01812,104930.0,104920.0,0.98746182]
[1762718406990,0.01812,104930.0,104920.0,1.00652182]
[1762718407186,0.04142,104930.0,104920.0,0.8359926]
[1762718407393,0.0045,104930.0,104920.0,0.8359926]
[1762718407997,0.01812,104930.0,104920.0,0.8359926]
[1762718408194,0.14906501,104930.0,104920.0,0.8359926]
[1762718408500,0.14906501,104930.0,104920.0,0.92125721]
[1762718409594,0.09603207,104940.0,104930.0,0.0953234]
[1762718409793,0.13295207,104940.0,104930.0,0.64571262]
[1762718409996,0.15486207,104940.0,104930.0,0.64571262]
[1762718410193,0.22338445,104940.0,104930.0,0.64571262]
[1762718410394,0.13764944,104940.0,104930.0,0.56044801]
[1762718410696,0.06912706,104940.0,104930.0,0.44606461]
[1762718411292,0.06912706,104940.0,104930.0,0.54138801]
[1762718411803,0.06912706,104940.0,104930.0,0.64571262]
[1762718412101,0.06912706,104940.0,104930.0,0.56044801]
[1762718412300,0.07012706,104940.0,104930.0,0.56044801]
[1762718412694,0.11054389,104940.0,104930.0,0.56044801]
[1762718412889,0.02491706,104940.0,104930.0,0.64571262]
[1762718413090,0.04821706,104940.0,104930.0,0.64571262]
[1762718413302,0.07012706,104940.0,104930.0,0.64571262]
[1762718413599,0.01129706,104940.0,104930.0,0.64571262]
[1762718413797,0.18966436,104960.0,104940.0,0.0953144]
[1762718414000,0.18966436,104960.0,104950.0,0.92122991]
[1762718414190,0.07407104,104960.0,104950.0,0.74066]
[1762718414391,0.07407104,104960.0,104950.0,0.77338229]
[1762718414595,0.07407104,104960.0,104950.0,0.79244229]
[1762718414790,0.02024104,104960.0,104950.0,0.79244229]
[1762718415004,0.02024104,104960.0,104950.0,1.03064229]
[1762718415201,0.0095,104960.0,104950.0,1.1159069]
[1762718415392,0.0095,104960.0,104950.0,1.03064229]
[1762718415596,0.0125,104960.0,104950.0,1.03064229]
[1762718415796,0.0125,104960.0,104950.0,0.8777069]
[1762718415995,0.008,104960.0,104950.0,1.7159069]
[1762718416301,0.05883,104970.0,104960.0,0.07721494]
[1762718416598,0.05883,104970.0,104960.0,0.52327955]
[1762718416797,0.00485235,104980.0,104970.0,0.0952872]
[1762718417000,0.00485235,104980.0,104970.0,0.4809872]
[1762718417190,0.06368235,104980.0,104970.0,0.57528922]
[1762718417391,0.06368235,104980.0,104970.0,0.53132922]
[1762718417597,0.06368235,104980.0,104970.0,0.64567642]
[1762718417798,0.06368235,104980.0,104970.0,0.4751472]
[1762718418101,0.06368235,104980.0,104970.0,0.88383642]
[1762718418496,0.01847235,104980.0,104970.0,0.88383642]
[1762718418696,0.00485235,104980.0,104970.0,0.88383642]
[1762718418894,0.00485235,104980.0,104970.0,0.96910103]
[1762718419095,0.00485235,104980.0,104970.0,1.16341181]
[1762718419402,0.00485235,104980.0,104970.0,1.40357181]
[1762718420696,2.03,105000.0,104980.0,0.095278]
[1762718420901,2.03,105000.0,104990.0,0.816869]
[1762718421301,2.03,105000.0,104990.0,1.074049]
[1762718421501,2.03,105000.0,104990.0,1.24457822]
[1762718422216,2.03,105000.0,104990.0,1.25457821]
[1762718422503,2.031,105000.0,104990.0,0.90213361]
[1762718422808,0.37859907,105000.0,104990.0,1.26947822]
[1762718423012,0.001,105000.0,104990.0,1.26041821]
[1762718423217,0.001,105000.0,104990.0,1.86041821]
[1762718423506,0.02503461,105020.0,105010.0,0.26578002]
[1762718423507,0.01141461,105020.0,105010.0,0.26578002]
[1762718423709,0.01141461,105020.0,105010.0,0.62658002]
[1762718423917,0.0045,105020.0,105010.0,0.86466002]
[1762718424103,0.01362,105040.0,105010.0,1.19808362]
[1762718424297,0.01812,105050.0,105030.0,0.89212922]
[1762718424496,0.06333,105050.0,105040.0,0.23173541]
[1762718425811,0.0075,105050.0,105040.0,0.27479541]
[1762718426111,0.0075,105050.0,105040.0,0.28528541]
[1762718426313,0.10954,105050.0,105040.0,0.27479541]
[1762718426621,0.11454,105050.0,105040.0,0.27479541]
[1762718427205,0.15898,105050.0,105040.0,0.58434821]
[1762718428002,0.15898,105050.0,105040.0,0.40386]
[1762718428209,0.2541946,105050.0,105040.0,0.40386]
[1762718428810,0.14648,105040.0,105030.0,0.50886216]
[1762718429008,0.2417036,105040.0,105030.0,0.41363346]
[1762718429405,0.14648,105040.0,105030.0,0.41363346]
[1762718429911,0.14948,105040.0,105030.0,0.41363346]
[1762718430909,0.2447036,105040.0,105030.0,0.02135346]
[1762718431217,0.32996821,105040.0,105030.0,0.02135346]
[1762718431414,0.23574461,105040.0,105030.0,0.02135346]
[1762718432718,0.33096821,105040.0,105030.0,0.02135346]
[1762718432914,0.23574461,105040.0,105030.0,0.05283346]
[1762718433709,0.33096821,105040.0,105030.0,0.05283346]
[1762718433914,0.69176821,105040.0,105030.0,0.00014346]
[1762718434128,0.14648,105020.0,105000.0,0.4560592]
[1762718434310,0.14648,105010.0,105000.0,0.5087499]
[1762718434705,0.14648,105010.0,105000.0,0.59401451]
[1762718435121,0.14648,105010.0,105000.0,0.59501451]
[1762718435416,0.14648,105010.0,105000.0,0.59701461]
[1762718435614,0.14648,105010.0,105000.0,0.41649]
[1762718435914,0.68779551,105010.0,105000.0,0.02421]
[1762718436115,0.68779551,105010.0,105000.0,0.004]
[1762718436315,0.14648,105000.0,104990.0,0.00014346]
[1762718436521,0.68780461,105000.0,104990.0,0.00014346]
[1762718436825,0.2417582,104980.0,104970.0,0.05269]
[1762718437121,0.2417582,104980.0,104960.0,0.41825349]
[1762718437122,0.10204,104970.0,104960.0,0.41825349]
[1762718438218,0.10204,104970.0,104960.0,0.51354979]
[1762718438418,0.10204,104970.0,104960.0,0.51454979]
[1762718438819,0.10204,104970.0,104960.0,0.51354979]
[1762718439020,0.10204,104970.0,104960.0,0.51454979]
[1762718439617,0.10204,104970.0,104960.0,0.41925349]
[1762718439818,0.10204,104970.0,104960.0,0.51654969]
[1762718440017,0.11277234,104970.0,104960.0,0.51654969]
[1762718440415,0.10204,104970.0,104960.0,0.51654969]
[1762718440611,0.14662346,104980.0,104970.0,0.1479772]
[1762718440815,0.14662346,104980.0,104970.0,0.5087772]
[1762718442019,0.14862346,104980.0,104970.0,0.5087772]
[1762718442821,0.14662346,104980.0,104970.0,0.5087772]
[1762718444214,0.14662346,104980.0,104970.0,0.5097772]
[1762718444613,0.24190146,104980.0,104970.0,0.41449]
[1762718446423,0.14662346,104980.0,104970.0,0.5097771]
[1762718447120,0.24190146,104980.0,104970.0,0.41449]
[1762718449319,0.14662346,104980.0,104970.0,0.41449]
[1762718449524,0.14662346,104980.0,104970.0,0.5097771]
[1762718450621,0.24190146,104980.0,104970.0,0.41449]
[1762718450823,0.24190146,104980.0,104970.0,0.05369]
[1762718451618,0.14662346,104980.0,104970.0,0.05369]
[1762718451923,0.14762346,104980.0,104970.0,0.147977]
[1762718452620,0.14762346,104980.0,104970.0,0.05269]
[1762718452822,0.14762346,104980.0,104970.0,0.147977]
[1762718453026,0.24290146,104980.0,104970.0,0.05269]
[1762718453925,0.24290146,104980.0,104970.0,0.1479771]
[1762718454626,0.14762346,104980.0,104970.0,0.1479771]
[1762718455227,0.24290146,104980.0,104970.0,0.05269]
[1762718455429,0.14762346,104980.0,104970.0,0.1479771]
[1762718455826,0.24290136,104980.0,104970.0,0.05269]
[1762718458833,0.24290136,104980.0,104970.0,0.12838523]
[1762718459134,0.24290136,104980.0,104970.0,0.05269]
[1762718460729,0.14762346,104980.0,104970.0,0.22367223]
[1762718461033,0.00114346,104980.0,104970.0,0.58447223]
[1762718462927,0.00014346,104980.0,104970.0,0.64354641]
[1762718463827,0.11685346,104980.0,104970.0,0.64454641]
[1762718464228,0.00014346,104980.0,104970.0,0.64454641]
[1762718464424,0.00014346,104980.0,104970.0,0.88270641]
[1762718465222,0.00014346,104980.0,104970.0,0.64454641]
[1762718465437,0.00014346,104980.0,104970.0,0.88270641]
[1762718468038,0.00014346,104980.0,104970.0,0.64454641]
[1762718468239,0.00014346,104980.0,104970.0,0.88270641]
[1762718468632,0.00014346,104980.0,104970.0,0.64454641]
[1762718469033,0.00014346,104980.0,104970.0,0.88270641]
[1762718470137,0.00014346,104980.0,104970.0,0.64454641]
[1762718470737,0.00014346,104980.0,104970.0,0.88270641]
[1762718471928,0.26065412,105000.0,104990.0,0.0162]
[1762718472137,0.1923,105010.0,105000.0,0.11146]
[1762718472339,0.1923,105010.0,105000.0,0.47226]
[1762718472533,0.27796557,105010.0,105000.0,0.47226]
[1762718472735,0.08566557,105010.0,105000.0,0.85774]
[1762718473735,0.08866557,105010.0,105000.0,0.47226]
[1762718473938,0.08866557,105010.0,105000.0,0.71034]
[1762718474138,0.08866557,105010.0,105000.0,0.47226]
[1762718474437,0.003,105010.0,105000.0,0.71034]
[1762718474933,0.18977346,105020.0,105010.0,0.111451]
[1762718475129,0.28501536,105020.0,105010.0,0.472251]
[1762718475343,0.18977346,105020.0,105010.0,0.472251]
[1762718475944,0.11685346,105020.0,105010.0,0.472251]
[1762718476443,0.00014346,105020.0,105010.0,0.473251]
[1762718477147,0.00014346,105020.0,105010.0,0.474251]
[1762718477643,0.00014346,105020.0,105010.0,0.84610041]
[1762718478244,0.00014346,105020.0,105010.0,0.60802041]
[1762718478439,0.00014346,105020.0,105010.0,0.84610041]
[1762718478646,0.00014346,105020.0,105010.0,0.60802041]
[1762718478948,0.00014346,105020.0,105010.0,0.84610041]
[1762718479149,0.00014346,105020.0,105010.0,0.60802041]
[1762718479339,0.00014346,105020.0,105010.0,0.84610041]
[1762718479540,0.00014346,105020.0,105010.0,0.60802041]
[1762718479935,0.28501536,105020.0,105010.0,0.4742509]
[1762718480751,0.18977346,105020.0,105010.0,0.4742509]
[1762718482342,0.00014346,105020.0,105010.0,0.60802031]
[1762718482540,0.18977346,105020.0,105010.0,0.4742509]
[1762718482738,0.28501526,105020.0,105010.0,0.4742509]
[1762718482938,0.18977346,105020.0,105010.0,0.4742509]
[1762718483138,0.28501526,105020.0,105010.0,0.4742509]
[1762718483339,0.18977346,105020.0,105010.0,0.4742509]
[1762718484947,0.18977346,105020.0,105010.0,0.54988101]
[1762718485249,0.28501526,105020.0,105010.0,0.54988101]
[1762718485439,0.28501526,105020.0,105010.0,0.3628]